[Event "58th Akiba Rubinstein A 2022"]
[Site "Polanica-Zdroj"]
[Date "2022.08.14"]
[Round "2.14"]
[White "Walkusz, Witoslaw"]
[Black "Iwanczuk, Krzysztof"]
[Result "0-1"]
[ECO "D85"]
[WhiteElo "2001"]
[BlackElo "1947"]
[Annotator "NA RC"]
[PlyCount "76"]
[EventDate "2022.08.13"]
[EventCountry "POL"]
[SourceTitle "playchess.com"]
[Source "ChessBase"]
[SourceQuality "1"]
[TimeControl "40/5400+30:1800+30"]

1. d4 {[%emt 0:00:03]} Nf6 {[%emt 0:00:07]} 2. c4 {[%emt 0:00:15]} g6 {[%emt 0:00:07]} 3. Nc3 {[%emt 0:00:15]} d5 {[%emt 0:00:23]} 4. cxd5 {[%emt 0:00:26]} Nxd5 {[%emt 0:00:08]} 5. Na4 {[%emt 0:00:19]} Bg7 {[%emt 0:01:11]} 6. e4 {[%emt 0:00:14]} Nb6 {[%emt 0:00:46]} 7. Be3 {[%emt 0:00:44]} O-O {[%emt 0:02:03]} 8. Nf3 {[%emt 0:01:34]} Nc6 {[%emt 0:05:01]} 9. Bb5 {[%emt 0:00:12]} Na5 {[%emt 0:27:32]} 10. Rc1 {[%emt 0:10:29]} c6 {[%emt 0:05:59]} 11. Be2 {[%emt 0:01:03]} Nxa4 {[%emt 0:02:11]} 12. Qxa4 {[%emt 0:00:13]} b5 {[%emt 0:06:59]} 13. Qa3 {[%emt 0:07:48]} Be6 {[%emt 0:05:38]} 14. b3 {[%emt 0:03:37]} Rc8 {[%emt 0:10:37]} 15. O-O {[%emt 0:04:25]} Nb7 {[%emt 0:02:56]} 16. Rfd1 {[%emt 0:07:13]} Nd6 {[%emt 0:01:18]} 17. d5 {[%emt 0:21:38]} cxd5 {[%emt 0:00:53]} 18. Rxc8 {[%emt 0:03:51]} Bxc8 {[%emt 0:01:07]} 19. Nd4 {[%emt 0:09:02]} dxe4 {[%emt 0:11:27]} 20. Qxa7 {[%emt 0:05:58]} Bd7 {[%emt 0:01:33]} 21. Nxb5 {[%emt 0:01:11]} Bxb5 {[%emt 0:00:24]} 22. Bxb5 {[%emt 0:00:10]} Nxb5 {[%emt 0:00:43]} 23. Qd7 {[%emt 0:04:03]} Qxd7 {[%emt 0:01:03]} 24. Rxd7 {[%emt 0:00:06]} e6 {[%emt 0:02:12]} 25. a4 {[%emt 0:00:14]} Ra8 {[%emt 0:02:25]} 26. g4 {[%emt 0:00:52]} Nc3 {[%emt 0:00:32]} 27. a5 {[%emt 0:00:23]} Nd5 {[%emt 0:00:54]} 28. Bd2 {[%emt 0:04:02]} Bf8 {[%emt 0:02:45]} 29. Rb7 {[%emt 0:00:53]} Bd6 {[%emt 0:01:08]} 30. b4 {[%emt 0:00:45]} Rb8 {[%emt 0:00:55]} 31. Rxb8+ {[%emt 0:01:56]} Bxb8 {[%emt 0:00:04]} 32. b5 {[%emt 0:00:05]} Kf8 {[%emt 0:00:44]} 33. g5 {[%emt 0:03:46]} Ke7 {[%emt 0:00:13]} 34. Bc1 {[%emt 0:01:30]} Kd7 {[%emt 0:02:02]} 35. Ba3 {[%emt 0:00:45]} Bd6 {[%emt 0:00:24]} 36. Bb2 {[%emt 0:00:48]} Bb4 {[%emt 0:00:33]} 37. a6 {[%emt 0:00:10]} Bc5 {[%emt 0:00:16]} 38. Kg2 {[%emt 0:00:15]} Nc7 {[%emt 0:00:33]} 0-1

[Event "58th Akiba Rubinstein A 2022"]
[Site "Polanica-Zdroj"]
[Date "2022.08.14"]
[Round "2.15"]
[White "Motyl, Tomasz"]
[Black "Lambrecht, Tomasz"]
[Result "1/2-1/2"]
[ECO "C47"]
[WhiteElo "1936"]
[BlackElo "1956"]
[Annotator "NA RC"]
[PlyCount "66"]
[EventDate "2022.08.13"]
[EventCountry "POL"]
[SourceTitle "playchess.com"]
[Source "ChessBase"]
[SourceQuality "1"]
[TimeControl "40/5400+30:1800+30"]

1. e4 {[%emt 0:00:05]} e5 {[%emt 0:00:39]} 2. Nf3 {[%emt 0:01:52]} Nc6 {[%emt 0:00:16]} 3. Nc3 {[%emt 0:02:22]} Nf6 {[%emt 0:00:18]} 4. a3 {[%emt 0:00:42]} d5 {[%emt 0:10:14]} 5. exd5 {[%emt 0:04:31]} Nxd5 {[%emt 0:00:09]} 6. Bb5 {[%emt 0:00:49]} Nxc3 {[%emt 0:02:10]} 7. bxc3 {[%emt 0:00:21]} Bd6 {[%emt 0:00:38]} 8. d4 {[%emt 0:01:10]} exd4 {[%emt 0:00:53]} 9. cxd4 {[%emt 0:00:12]} O-O {[%emt 0:00:21]} 10. Bg5 {[%emt 0:12:12]} Qe8+ {[%emt 0:03:49]} 11. Be2 {[%emt 0:02:36]} Bg4 {[%emt 0:13:04]} 12. O-O {[%emt 0:00:31]} h6 {[%emt 0:08:05]} 13. Be3 {[%emt 0:03:34]} Ne7 {[%emt 0:03:47]} 14. h3 {[%emt 0:06:58]} Bh5 {[%emt 0:04:54]} 15. c4 {[%emt 0:06:15]} c6 {[%emt 0:02:13]} 16. Re1 {[%emt 0:06:36]} Qd8 {[%emt 0:05:02]} 17. Qb3 {[%emt 0:03:01]} Rb8 {[%emt 0:01:22]} 18. Rad1 {[%emt 0:05:17]} Kh8 {[%emt 0:04:28]} 19. Bc1 {[%emt 0:12:51]} f6 {[%emt 0:18:23]} 20. Nd2 {[%emt 0:06:53]} Bxe2 {[%emt 0:03:57]} 21. Rxe2 {[%emt 0:00:07]} Bf4 {[%emt 0:01:00]} 22. Nf3 {[%emt 0:02:50]} Bxc1 {[%emt 0:01:49]} 23. Rxc1 {[%emt 0:00:05]} Nf5 {[%emt 0:02:36]} 24. Qd3 {[%emt 0:06:09]} Qd7 {[%emt 0:00:43]} 25. Rce1 {[%emt 0:00:19]} Rbd8 {[%emt 0:00:19]} 26. Re4 {[%emt 0:00:37]} Rf7 {[%emt 0:00:58]} 27. Re6 {[%emt 0:06:21]} Nxd4 {[%emt 0:06:43]} 28. Nxd4 {[%emt 0:00:56]} c5 {[%emt 0:00:08]} 29. R6e4 {[%emt 0:01:37]} cxd4 {[%emt 0:00:15]} 30. Rd1 {[%emt 0:01:03]} Re7 {[%emt 0:05:32]} 31. Qxd4 {[%emt 0:02:36]} Qxd4 {[%emt 0:00:31]} 32. Rdxd4 {[%emt 0:00:41]} Rxe4 {[%emt 0:00:37]} 33. Rxd8+ {[%emt 0:00:53]} Kh7 {[%emt 0:00:05]} 1/2-1/2

[Event "58th Akiba Rubinstein A 2022"]
[Site "Polanica-Zdroj"]
[Date "2022.08.14"]
[Round "2.16"]
[White "Kolodziejski, Piotr"]
[Black "Nowak, Filip"]
[Result "1-0"]
[ECO "B81"]
[WhiteElo "2107"]
[BlackElo "1957"]
[Annotator "TA"]
[PlyCount "81"]
[EventDate "2022.08.13"]
[EventCountry "POL"]
[SourceTitle "playchess.com"]
[Source "ChessBase"]
[SourceQuality "1"]
[TimeControl "40/5400+30:1800+30"]

{[%evp 25,81,90,89,82,95,30,22,36,51,53,56,62,60,29,48,39,66,72,100,89,84,59,208,94,114,45,28,-97,-93,-51,-67,-70,0,-51,-37,-56,-52,-50,0,-5,29,41,39,20,29,29,285,0,0,0,0,-8,91,92,558,576,623,584]} 1. e4 {[%emt 0:00:03]} c5 {[%emt 0:00:08]} 2. Nf3 {[%emt 0:00:07]} e6 {[%emt 0:00:09]} 3. d4 {[%emt 0:00:05]} cxd4 {[%emt 0:00:09]} 4. Nxd4 {[%emt 0:00:06]} Nf6 {[%emt 0:00:12]} 5. Nc3 {[%emt 0:00:09]} d6 {[%emt 0:00:07]} 6. g4 {[%emt 0:00:08]} h6 {[%emt 0:00:11]} 7. h4 {[%emt 0:00:09]} Nc6 {[%emt 0:00:07]} 8. Rg1 {[%emt 0:00:14]} h5 {[%emt 0:00:06]} 9. gxh5 {[%emt 0:00:08]} Nxh5 {[%emt 0:00:05]} 10. Bg5 {[%emt 0:00:06]} Nf6 {[%emt 0:00:11]} 11. Qd2 {[%emt 0:01:20]} Qb6 {[%emt 0:00:45]} 12. Nb3 {[%emt 0:09:25]} Bd7 {[%emt 0:01:42]} 13. O-O-O {[%emt 0:02:50]} a6 {[%emt 0:02:31]} 14. Kb1 {[%emt 0:06:08] B81: Sicilian Scheveningen: Keres Attack.} Qc7 {[%emt 0:00:31]} 15. Bxf6 {[%emt 0:01:37]} (15. Be2 $16) 15... gxf6 $11 {[%emt 0:00:10]} 16. Qf4 {[%emt 0:01:49] [#] The position is equal.} O-O-O $146 {[%emt 0:17:59]} ({Predecessor:} 16... Ne5 17. Qxf6 Rh6 18. Qf4 Ng6 19. Qe3 Rxh4 20. f4 O-O-O 21. f5 Ne5 22. Nd4 Kb8 {0-1 (44) Nitin,S (2353)-Vorobiov,E (2520) Graz 2020}) 17. Be2 (17. Qxf6 Be7 18. Qxf7 Rdf8 $11) 17... Be7 {[%emt 0:09:39]} 18. h5 {[%emt 0:02:42]} Kb8 {[%emt 0:04:34]} 19. Qe3 {[%emt 0:11:13]} Ne5 {[%emt 0:06:50]} 20. Nd2 {[%emt 0:19:17]} Bc6 {[%emt 0:13:36]} 21. f4 {[%emt 0:05:29]} Nd7 {[%emt 0:00:19]} 22. Rg7 {[%emt 0:03:31]} Rdf8 {[%emt 0:01:12]} 23. Nb3 {[%emt 0:04:50] Nd4 is the strong threat.} b5 {[%emt 0:03:58]} ({Black should play} 23... f5 $14) 24. Bf3 {[%emt 0:08:12]} (24. f5 $1 $18 {[%cal Rf5e6]}) 24... Bb7 {[%emt 0:10:30]} 25. Rh1 {[%emt 0:04:03] 0x0.0005ed18a068dp-1022s more active pieces.} ({White should try} 25. a3 $16) 25... Nb6 $14 {[%emt 0:09:10]} 26. Nd2 {[%emt 0:04:14]} (26. Qd4 $11 {remains equal.}) 26... b4 $17 {[%emt 0:01:45]} 27. Ne2 d5 $1 {[%emt 0:02:51]} 28. Nd4 {[%emt 0:06:34]} Bc5 {[%emt 0:01:46]} (28... dxe4 $15 29. Nxe4 (29. Bxe4 Nd5 $17) 29... Nd5) 29. N2b3 {[%emt 0:03:04]} (29. e5 $11) 29... Nc4 {[%emt 0:01:08]} 30. Qd3 {[%emt 0:03:06] Threatens to win with Nxe6.} Bxd4 {[%emt 0:00:57]} 31. Qxd4 {[%emt 0:00:04][%cal Re4d5]} (31. Nxd4 $2 dxe4 32. Qd1 (32. Bxe4 $2 Bxe4 33. Nxe6 Qc8 $19) 32... Rd8 $19) 31... Qxf4 {[%emt 0:01:04]} (31... e5 $1 $15 32. fxe5 fxe5) 32. Be2 {[%emt 0:01:14]} Qe3 {[%emt 0:04:33]} 33. Qxe3 {[%emt 0:01:02]} Nxe3 {[%emt 0:00:04]} 34. Nc5 $36 {[%mdl 2048] Hoping for Nd7+. White has the initiative.} Ka7 {[%emt 0:03:17]} 35. Rh3 {[%emt 0:01:47]} Nxc2 {[%emt 0:02:58][%mdl 8192]} 36. Kxc2 $2 {[%emt 0:02:14]} ({White has to play} 36. Nxb7 $18 Nd4 37. Nd6 $1) 36... Rc8 $11 {[%emt 0:00:10]} 37. Rxf7 {[%emt 0:00:09]} Rxc5+ {[%emt 0:00:22]} 38. Kd2 {[%emt 0:00:59]} Rh6 {[%emt 0:01:17]} (38... dxe4 $11 39. a3 f5) 39. Rg3 $16 {[%emt 0:00:07]} dxe4 $2 {[%emt 0:01:07][%mdl 8192] [#]} (39... Kb6 $16) 40. Rgg7 $1 $18 {[%emt 0:00:00]} e3+ {[%emt 0:00:00]} 41. Kxe3 {[%emt 0:01:34] Weighted Error Value: White=0.34/Black=0.58} 1-0

[Event "58th Akiba Rubinstein A 2022"]
[Site "Polanica-Zdroj"]
[Date "2022.08.15"]
[Round "3.1"]
[White "Koziorowicz, Michal"]
[Black "Cyborowski, Lukasz"]
[Result "1/2-1/2"]
[ECO "B48"]
[WhiteElo "2231"]
[BlackElo "2483"]
[Annotator "TA"]
[PlyCount "35"]
[EventDate "2022.08.13"]
[EventCountry "POL"]
[SourceTitle "playchess.com"]
[Source "ChessBase"]
[SourceQuality "1"]
[TimeControl "40/5400+30:1800+30"]

{[%evp 15,16,25,67]} 1. e4 {[%emt 0:00:15]} c5 {[%emt 0:00:13]} 2. Nf3 {[%emt 0:00:10]} e6 {[%emt 0:00:30]} 3. Nc3 {[%emt 0:00:44]} Nc6 {[%emt 0:01:37]} 4. d4 {[%emt 0:00:37]} cxd4 {[%emt 0:00:05]} 5. Nxd4 {[%emt 0:00:03]} Qc7 {[%emt 0:00:05]} 6. Be3 {[%emt 0:01:45]} a6 {[%emt 0:00:24]} 7. Qd2 {[%emt 0:02:00] 7.g4 is more advanced technology.} Nf6 {[%emt 0:00:41]} 8. f3 {[%emt 0:00:32]} Bb4 {[%emt 0:00:32] [#]} {Predecessor:} 9. O-O-O $146 {B48: Sicilian: Taimanov: 5 Nc3 Qc7 6 Be3 a6 without Be2.} O-O 10. Nb3 d5 11. a3 Bxc3 12. Qxc3 dxe4 13. fxe4 Nxe4 14. Qc4 f5 15. Be2 b5 16. Qd3 Rd8 17. Nd4 Nxd4 18. Bxd4 {0-1 (42) Meskovs,N (2585)-Ivanisevic,I (2604) Chess.com INT 2020} 1/2-1/2

[Event "58th Akiba Rubinstein A 2022"]
[Site "Polanica-Zdroj"]
[Date "2022.08.15"]
[Round "3.2"]
[White "Razin, Vadim"]
[Black "Skrzypczynski, Kacper"]
[Result "1-0"]
[ECO "D15"]
[WhiteElo "2428"]
[BlackElo "1793"]
[Annotator "TA"]
[PlyCount "61"]
[EventDate "2022.08.13"]
[EventCountry "POL"]
[SourceTitle "playchess.com"]
[Source "ChessBase"]
[SourceQuality "1"]
[TimeControl "40/5400+30:1800+30"]

{[%evp 12,61,-38,-46,-33,-39,-10,-30,37,0,0,5,127,118,107,74,77,91,72,62,72,79,109,76,371,364,325,241,206,112,328,338,508,505,503,509,476,424,646,647,1216,1177,1190,1214,1205,1182,1102,1087,1329,1246,935,819]} 1. d4 {[%emt 0:00:03]} d5 {[%emt 0:00:07]} 2. Nf3 {[%emt 0:00:05]} Nf6 {[%emt 0:00:06][%cal Bg8f6,Bf6d5,Bd5c3][%mdl 32]} 3. c4 {[%emt 0:00:04]} c6 {[%emt 0:00:04]} 4. Nc3 {[%emt 0:00:10]} dxc4 {[%emt 0:00:07]} 5. e4 {[%emt 0:00:06][%cal Be2e4,Be4e5][%mdl 32]} b5 {[%emt 0:00:11]} 6. e5 {[%emt 0:00:22]} Nd5 {[%emt 0:00:59]} 7. Be2 {[%emt 0:00:10]} e6 {[%emt 0:03:38] D15: Slav Defence: 4 Nc3 a6 and gambit lines after 4 Nc3 dxc4.} 8. a4 {[%emt 0:01:01]} Nxc3 {[%emt 0:07:09]} (8... Nd7 {is more complex.} 9. O-O N7b6 10. Ng5 Be7) 9. bxc3 {[%emt 0:00:03]} Bb7 {[%emt 0:01:28]} (9... Nd7 $11) 10. O-O {[%emt 0:02:57][%mdl 1024] White has compensation.} a6 {[%emt 0:01:43]} 11. Ng5 {[%emt 0:09:39][%cal Bf3g5,Bg5e4,Be4d6][%mdl 32] [#]} Qc7 $146 (11... Be7 $11 12. Ne4 Nd7) ({Predecessor:} 11... Be7 12. Ne4 Nd7 13. Ba3 Bxa3 14. Rxa3 O-O 15. Nd6 Qc7 16. f4 Nb6 17. f5 exf5 18. Rxf5 {0-1 (61) Gefenas,V (2280)-Cox,J (2392) Vilnius 2014}) 12. f4 {[%emt 0:16:32]} h6 {[%emt 0:17:34]} 13. Ne4 {[%emt 0:12:15] Hoping for f5.} c5 {[%emt 0:01:22]} 14. Bf3 {[%emt 0:02:44][%cal Of4f5] [#] And now f5! would win. 0x0.0013bc346de4dp-1022s more active pieces.} Nd7 {[%emt 0:05:02]} 15. Nd6+ {[%emt 0:18:17]} Bxd6 {[%emt 0:00:10]} 16. exd6 {[%emt 0:00:06]} Qb8 {[%emt 0:01:26]} 17. dxc5 {[%emt 0:02:27]} Bxf3 $4 {[%emt 0:04:14][%mdl 8192]} (17... Nxc5 $16 18. axb5 O-O) 18. Qxf3 $18 {[%emt 0:01:37]} Nxc5 {[%emt 0:00:18]} 19. Qc6+ {[%emt 0:11:06]} Nd7 {[%emt 0:00:08]} 20. Be3 {[%emt 0:00:40] Inhibits Qb6.} ({Better is} 20. axb5 $18 {aiming for Be3.} Qb6+ 21. Rf2) 20... Qc8 $2 {[%emt 0:02:43]} (20... bxa4 $16 21. Rxa4 Qc8) 21. axb5 {[%emt 0:00:19][%cal Ba4b5,Bb5b6][%mdl 32]} a5 {[%emt 0:00:06]} (21... Qxc6 $142 22. bxc6 Nb8 23. d7+ Nxd7 24. cxd7+ Kxd7) 22. Qxc8+ {[%emt 0:01:28] White is clearly winning.} Rxc8 {[%emt 0:00:08]} 23. Rxa5 {[%emt 0:00:36]} Rb8 {[%emt 0:00:13]} 24. Rb1 {[%emt 0:00:27]} O-O {[%emt 0:00:08]} (24... Nf6 $142 25. Bd4 Nd5 26. Bxg7 Rg8) 25. b6 {[%emt 0:00:47]} Rb7 {[%emt 0:00:13]} 26. Ra7 {[%emt 0:00:15]} Rfb8 {[%emt 0:00:36]} 27. Rxb7 {[%emt 0:00:06]} Rxb7 {[%emt 0:00:10]} 28. Ra1 {[%emt 0:00:04] [#] Threatens to win with Ra7.} Rb8 {[%emt 0:01:28]} 29. Ra7 {[%emt 0:00:02]} Nxb6 {[%emt 0:00:55]} 30. Bxb6 {[%emt 0:00:05]} Rxb6 {[%emt 0:00:03]} 31. Ra8+ {[%emt 0:00:12] Weighted Error Value: White=0.20 (precise) /Black=0.74} 1-0

[Event "58th Akiba Rubinstein A 2022"]
[Site "Polanica-Zdroj"]
[Date "2022.08.15"]
[Round "3.3"]
[White "Antoniewicz, Jakub"]
[Black "Siekanska, Maria"]
[Result "0-1"]
[ECO "D02"]
[WhiteElo "1931"]
[BlackElo "1964"]
[Annotator "NA RC"]
[PlyCount "120"]
[EventDate "2022.08.13"]
[EventCountry "POL"]
[SourceTitle "playchess.com"]
[Source "ChessBase"]
[SourceQuality "1"]
[TimeControl "40/5400+30:1800+30"]

1. d4 {[%emt 0:00:03]} d5 {[%emt 0:00:05]} 2. Nf3 {[%emt 0:00:18]} e6 {[%emt 0:00:33]} 3. g3 {[%emt 0:00:22]} Nf6 {[%emt 0:00:26]} 4. Bg2 {[%emt 0:00:06]} c5 {[%emt 0:00:22]} 5. O-O {[%emt 0:00:51]} Nc6 {[%emt 0:00:31]} 6. c4 {[%emt 0:02:03]} Be7 {[%emt 0:00:16]} 7. Bf4 {[%emt 0:14:54]} O-O {[%emt 0:01:06]} 8. dxc5 {[%emt 0:14:39]} Bxc5 {[%emt 0:00:16]} 9. a3 $11 {[%emt 0:01:05]} Ne4 {[%emt 0:03:13]} 10. b4 {[%emt 0:04:10]} Be7 {[%emt 0:00:15]} 11. Qb3 {[%emt 0:08:27]} Bf6 {[%emt 0:03:56]} 12. cxd5 {[%emt 0:05:16]} Bxa1 {[%emt 0:02:49]} 13. dxc6 {[%emt 0:00:05]} bxc6 {[%emt 0:03:48]} 14. Nbd2 {[%emt 0:05:56]} Nxd2 {[%emt 0:03:35]} 15. Nxd2 {[%emt 0:00:08]} e5 {[%emt 0:00:05]} 16. Bxc6 {[%emt 0:11:01]} Be6 {[%emt 0:03:40]} 17. Qf3 {[%emt 0:00:12]} Rc8 {[%emt 0:00:26]} 18. Rxa1 {[%emt 0:10:01]} exf4 {[%emt 0:00:13]} 19. Nf1 {[%emt 0:05:19]} Qf6 {[%emt 0:01:11]} 20. Re1 {[%emt 0:01:33]} fxg3 {[%emt 0:00:46]} 21. hxg3 {[%emt 0:00:20]} Qxf3 {[%emt 0:00:28]} 22. Bxf3 {[%emt 0:00:05]} Rc3 {[%emt 0:00:12]} 23. Ra1 {[%emt 0:01:11]} Rfc8 {[%emt 0:00:29]} 24. Kg2 {[%emt 0:09:14]} Rc1 {[%emt 0:00:35]} 25. Rxc1 {[%emt 0:00:06]} Rxc1 {[%emt 0:00:05]} 26. Ne3 {[%emt 0:00:37]} Ra1 {[%emt 0:01:19]} 27. Nc2 {[%emt 0:00:14]} Ra2 {[%emt 0:00:23]} 28. Be4 {[%emt 0:00:30]} Bb3 {[%emt 0:00:49]} 29. Nd4 {[%emt 0:01:03]} Rxa3 {[%emt 0:00:20]} 30. Bd3 {[%emt 0:00:01]} Bd5+ {[%emt 0:01:51]} 31. f3 {[%emt 0:00:08]} Ra4 {[%emt 0:02:12]} 32. Nc2 {[%emt 0:01:08]} Bb3 {[%emt 0:01:31]} 33. b5 {[%emt 0:00:05]} Bxc2 {[%emt 0:00:25]} 34. Bxc2 {[%emt 0:00:07]} Rb4 {[%emt 0:00:03]} 35. Bd3 {[%emt 0:00:02]} Kf8 {[%emt 0:00:56]} 36. Kf2 {[%emt 0:00:04]} g6 {[%emt 0:00:32]} 37. e4 {[%emt 0:00:12]} Ke7 {[%emt 0:00:28]} 38. Ke3 {[%emt 0:00:13]} Kd6 {[%emt 0:01:21]} 39. Kf4 {[%emt 0:00:06]} f6 {[%emt 0:00:35]} 40. g4 {[%emt 0:00:00]} h6 {[%emt 0:00:00]} 41. Ke3 {[%emt 0:02:36]} Kc5 {[%emt 0:01:33]} 42. f4 {[%emt 0:00:07]} Rxb5 {[%emt 0:01:27]} 43. Bxb5 {[%emt 0:01:30]} Kxb5 {[%emt 0:00:01]} 44. Kd4 {[%emt 0:00:06]} a5 {[%emt 0:02:25]} 45. Kd5 {[%emt 0:00:52]} a4 {[%emt 0:00:25]} 46. e5 {[%emt 0:00:15]} fxe5 {[%emt 0:00:21]} 47. fxe5 {[%emt 0:00:05]} Kb6 {[%emt 0:00:26]} 48. Kd6 {[%emt 0:16:29]} a3 {[%emt 0:03:29]} 49. e6 {[%emt 0:00:03]} a2 {[%emt 0:00:05]} 50. e7 {[%emt 0:00:02]} a1=Q {[%emt 0:00:06]} 51. e8=Q {[%emt 0:00:05]} Qd4+ {[%emt 0:00:06]} 52. Ke7 {[%emt 0:00:09]} Qe5+ {[%emt 0:00:03]} 53. Kf7 {[%emt 0:00:08]} Qxe8+ {[%emt 0:00:05]} 54. Kxe8 {[%emt 0:00:12]} h5 {[%emt 0:00:13]} 55. g5 {[%emt 0:00:03]} h4 {[%emt 0:00:05]} 56. Kf7 {[%emt 0:00:03]} h3 {[%emt 0:00:04]} 57. Kxg6 {[%emt 0:00:03]} h2 {[%emt 0:00:04]} 58. Kf7 {[%emt 0:00:03]} h1=Q {[%emt 0:00:06]} 59. g6 {[%emt 0:00:03]} Qd5+ {[%emt 0:00:47]} 60. Kf6 {[%emt 0:00:26]} Qg8 {[%emt 0:00:05]} 0-1

[Event "58th Akiba Rubinstein A 2022"]
[Site "Polanica-Zdroj"]
[Date "2022.08.15"]
[Round "3.5"]
[White "Majocha, Piotr"]
[Black "Kowalczyk, Rafal"]
[Result "0-1"]
[ECO "E10"]
[WhiteElo "2036"]
[BlackElo "2239"]
[Annotator "TA"]
[PlyCount "68"]
[EventDate "2022.08.13"]
[EventCountry "POL"]
[SourceTitle "playchess.com"]
[Source "ChessBase"]
[SourceQuality "1"]
[TimeControl "40/5400+30:1800+30"]

{[%evp 19,68,75,67,77,78,27,24,24,28,39,28,29,22,26,26,41,40,30,43,30,49,47,64,47,74,4,18,-24,-23,-66,-66,-74,-65,-129,-106,-240,-257,-274,-272,-533,-540,-523,-522,-595,-570,-1068,-1048,-29994,-29992,-29995,-29996]} 1. d4 {[%emt 0:00:05]} Nf6 {[%emt 0:01:41]} 2. c4 {[%emt 0:00:21]} e6 {[%emt 0:00:30]} 3. Nf3 {[%emt 0:00:09]} d5 {[%emt 0:01:29]} 4. g3 {[%emt 0:00:11]} c5 {[%emt 0:23:47]} 5. cxd5 {[%emt 0:01:19]} Nxd5 {[%emt 0:03:46]} 6. Bg2 {[%emt 0:01:08]} Nc6 {[%emt 0:00:20]} 7. O-O {[%emt 0:00:56]} Be7 {[%emt 0:00:33]} 8. Nc3 {[%emt 0:11:57]} Nxc3 {[%emt 0:11:50]} 9. bxc3 {[%emt 0:00:21]} Bf6 {[%emt 0:00:29]} 10. e3 {[%emt 0:01:03]} O-O {[%emt 0:01:54]} 11. Ba3 {[%emt 0:06:32] A34: Symmetrical English: 2 Nc3, lines with ...d5.} Be7 {[%emt 0:06:26]} 12. Nd2 {[%emt 0:18:59]} ({White should try} 12. Bxc5 $16 Bxc5 13. dxc5) 12... cxd4 $11 {[%emt 0:09:14]} 13. Bxe7 {[%emt 0:00:12] White has an edge.} Qxe7 {[%emt 0:01:50]} 14. cxd4 {[%emt 0:00:05]} Bd7 {[%emt 0:00:30] [#]} 15. Nc4 $146 {[%emt 0:16:21]} ({Predecessor:} 15. Rb1 Rab8 16. Qe2 Nb4 17. Ne4 Bc6 18. Qb2 Nd5 19. Rfc1 Nb6 20. Qc3 Rbc8 21. Qa5 {½-½ (38) Osipov,A (2043)-Belyaev,A (2073) Taganrog 2009}) 15... Rfd8 {[%emt 0:03:53]} 16. Qb3 {[%emt 0:05:35]} Be8 {[%emt 0:02:02]} 17. a4 {[%emt 0:07:50][%cal Ba2a4,Ba4a5][%mdl 32]} Rac8 {[%emt 0:08:40]} 18. a5 {[%emt 0:06:11]} Rc7 {[%emt 0:03:29]} 19. Nb2 {[%emt 0:05:06]} h5 {[%emt 0:02:02][%cal Bh7h5,Bh5h4][%mdl 32]} 20. Nd3 {[%emt 0:05:22]} h4 {[%emt 0:03:12]} 21. Qa3 {[%emt 0:04:09]} Qg5 {[%emt 0:04:16]} 22. Nb4 {[%emt 0:02:34]} ({Better is} 22. Rfc1 $16) 22... Rdc8 {[%emt 0:05:19]} 23. Nxc6 {[%emt 0:04:38]} Bxc6 {[%emt 0:00:08][%cal Be8c6,Bc6e4,Be4c2,Bc2d3][%mdl 32]} 24. e4 {[%emt 0:00:45]} h3 {[%emt 0:02:44]} 25. Bxh3 {[%emt 0:00:39][%cal Od4d5]} Bxe4 {[%emt 0:00:09]} 26. Rad1 {[%emt 0:00:29]} (26. Bg2 $15 Bxg2 27. Kxg2) 26... Qd5 {[%emt 0:01:07] 0x0.002363fefda1dp-1022s more active pieces.} 27. f3 {[%emt 0:00:24] [#] Now White is beyond hope.} (27. Qe3 $17) 27... Bc2 $1 $19 {[%emt 0:00:54]} 28. Rd2 {[%emt 0:00:18]} Rc3 {[%emt 0:00:26][%cal Bc7c3,Bc3b3,Bb3b1][%mdl 32] Against Qe3} 29. Qb2 {[%emt 0:00:26]} (29. Qa1) 29... Bd3 {[%emt 0:00:53]} 30. Rff2 {[%emt 0:00:26]} Rb3 {[%emt 0:01:04]} 31. Qa2 {[%emt 0:00:16][%cal Od2d3] And now Rxd3! would win.} Rb1+ {[%emt 0:00:30]} 32. Kg2 {[%emt 0:00:26] [#] Black must now prevent Qxd5.} Rcc1 $1 {[%emt 0:00:39][%csl Gb1][%cal Rc1g1]} 33. Bg4 {[%emt 0:00:56]} (33. Qxb1 Bxb1) 33... Rg1+ {[%emt 0:00:39]} 34. Kh3 {[%emt 0:00:04] [#]} Qg5 $1 {[%emt 0:00:09] Weighted Error Value: White=0.72/Black=0.04 (flawless)} 0-1

[Event "58th Akiba Rubinstein A 2022"]
[Site "Polanica-Zdroj"]
[Date "2022.08.15"]
[Round "3.6"]
[White "Czechowski, Jakub"]
[Black "Skurniak, Szymon"]
[Result "0-1"]
[ECO "A56"]
[WhiteElo "2003"]
[BlackElo "2051"]
[Annotator "NA RC"]
[PlyCount "70"]
[EventDate "2022.08.13"]
[EventCountry "POL"]
[SourceTitle "playchess.com"]
[Source "ChessBase"]
[SourceQuality "1"]
[TimeControl "40/5400+30:1800+30"]

1. d4 {[%emt 0:00:02]} Nf6 {[%emt 0:03:47]} 2. c4 {[%emt 0:00:10]} c5 {[%emt 0:01:05]} 3. d5 {[%emt 0:00:14]} g6 {[%emt 0:00:07]} 4. Nc3 {[%emt 0:00:04]} Bg7 {[%emt 0:00:05]} 5. Nf3 {[%emt 0:00:16]} d6 {[%emt 0:00:58]} 6. Nd2 {[%emt 0:01:48]} e6 {[%emt 0:00:18]} 7. e4 {[%emt 0:00:05]} O-O {[%emt 0:00:31]} 8. Be2 {[%emt 0:00:04]} exd5 {[%emt 0:00:07]} 9. cxd5 {[%emt 0:00:04]} Nbd7 {[%emt 0:03:44]} 10. O-O {[%emt 0:00:22]} Re8 {[%emt 0:00:10]} 11. f4 {[%emt 0:04:49]} c4 {[%emt 0:01:29]} 12. Qc2 {[%emt 0:05:14]} ({Reject} 12. Nxc4 Nxe4 13. Nxe4 Rxe4 $17) (12. e5 $11 dxe5 13. Nxc4) 12... b5 $17 {[%emt 0:13:13]} 13. a4 {[%emt 0:06:35]} b4 {[%emt 0:06:25]} 14. Nd1 {[%emt 0:02:49]} Nc5 {[%emt 0:01:12]} 15. Bxc4 {[%emt 0:06:27]} Ncxe4 {[%emt 0:06:39]} 16. Nxe4 {[%emt 0:00:17]} Nxe4 {[%emt 0:00:21]} 17. Be3 {[%emt 0:02:32]} Bf5 {[%emt 0:02:21]} 18. Qb3 {[%emt 0:07:31]} a5 {[%emt 0:18:06]} 19. Nf2 {[%emt 0:02:55]} Nc5 {[%emt 0:02:36]} 20. Bxc5 {[%emt 0:00:09]} dxc5 {[%emt 0:00:06]} 21. Nd3 {[%emt 0:02:07]} Bd4+ {[%emt 0:00:08]} 22. Kh1 {[%emt 0:00:05]} Ra7 {[%emt 0:14:02]} 23. Rae1 {[%emt 0:03:56]} Rae7 {[%emt 0:01:07]} 24. d6 {[%emt 0:00:18]} Rxe1 {[%emt 0:00:08]} 25. Bxf7+ {[%emt 0:00:08]} Kg7 {[%emt 0:00:16]} 26. Rxe1 {[%emt 0:00:46]} Rxe1+ {[%emt 0:00:29]} 27. Nxe1 {[%emt 0:00:04]} Qh4 {[%emt 0:07:02]} 28. Nf3 {[%emt 0:02:42]} Qf2 {[%emt 0:03:01]} 29. h3 {[%emt 0:00:09]} Be3 {[%emt 0:05:57]} 30. Qd1 {[%emt 0:07:29]} Bc2 {[%emt 0:02:18]} 31. Qa1 {[%emt 0:05:55]} Kxf7 {[%emt 0:01:36]} 32. Ne5+ {[%emt 0:01:41]} Ke6 {[%emt 0:01:40]} 33. d7 {[%emt 0:00:03]} Ke7 {[%emt 0:00:18]} 34. Ng4 {[%emt 0:00:49]} Qe2 {[%emt 0:00:47]} 35. b3 {[%emt 0:01:22]} Bd4 {[%emt 0:00:33]} 0-1